bitfinex-derivatives/quotes_BTCF0:USTF0_20250814
["timestamp","ask_amount","ask_price","bid_price","bid_amount"]
[1755197997504,0.37371234,118230.0,118220.0,1.32608658]
[1755197997709,0.29771031,118230.0,118220.0,2.14404658]
[1755197997911,0.17536777,118230.0,118220.0,2.14404658]
[1755197998706,0.17536777,118230.0,118220.0,1.32608658]
[1755197998913,0.25215592,118230.0,118220.0,2.14404658]
[1755197999113,0.25215592,118230.0,118220.0,2.14348658]
[1755197999608,0.25215592,118230.0,118220.0,1.32608658]
[1755197999808,0.18403815,118230.0,118220.0,2.14348658]
[1755198000207,0.18403815,118230.0,118220.0,1.32528658]
[1755198000410,0.07607661,118240.0,118220.0,2.38884788]
[1755198000615,0.18237552,118250.0,118240.0,0.0855325]
[1755198000802,0.07607661,118250.0,118240.0,1.62006038]
[1755198001120,0.07607661,118250.0,118240.0,1.78920438]
[1755198001708,0.07607661,118250.0,118240.0,1.62006038]
[1755198002114,0.07186432,118250.0,118240.0,1.4322328]
[1755198002416,0.49095432,118250.0,118240.0,0.6153928]
[1755198002712,0.49095432,118250.0,118240.0,1.4318328]
[1755198002909,0.49095432,118250.0,118240.0,1.78884068]
[1755198003213,0.49095432,118250.0,118240.0,1.78864068]
[1755198003413,0.49095432,118250.0,118240.0,1.4316328]
[1755198003614,0.49095432,118250.0,118240.0,1.78864068]
[1755198003913,0.49095432,118250.0,118240.0,0.97240068]
[1755198004113,0.49095432,118250.0,118240.0,1.78816068]
[1755198004307,0.49095432,118250.0,118240.0,0.97240068]
[1755198004505,0.49095432,118250.0,118240.0,1.78816068]
[1755198005212,0.49095432,118250.0,118240.0,0.97240068]
[1755198005604,0.49095432,118250.0,118240.0,1.78752068]
[1755198005806,0.8657175,118250.0,118240.0,1.2614525]
[1755198006002,0.9332875,118250.0,118240.0,0.4463325]
[1755198006210,0.57627962,118250.0,118240.0,1.2612125]
[1755198006412,0.49175432,118250.0,118240.0,1.2612125]
[1755198006615,0.49095432,118250.0,118240.0,0.4463325]
[1755198006802,0.49095432,118250.0,118240.0,1.2610525]
[1755198007113,0.55095432,118250.0,118240.0,1.2610525]
[1755198007308,0.55095432,118250.0,118240.0,0.4463325]
[1755198007508,0.63547962,118250.0,118240.0,1.2609325]
[1755198007816,0.55095432,118250.0,118240.0,1.2609325]
[1755198009314,0.55095432,118250.0,118240.0,0.4463325]
[1755198009516,0.55095432,118250.0,118240.0,1.2597325]
[1755198010417,0.61169217,118250.0,118240.0,1.2597325]
[1755198011119,1.05989217,118250.0,118240.0,1.2597325]
[1755198011613,1.3569622,118250.0,118240.0,0.3618]
[1755198011818,1.41667737,118250.0,118230.0,1.17404]
[1755198012014,0.88468732,118240.0,118230.0,1.17416]
[1755198012912,0.88468732,118240.0,118230.0,1.17408]
[1755198013108,0.88468732,118240.0,118230.0,1.2596197]
[1755198013512,1.14338732,118240.0,118230.0,1.2596197]
[1755198014217,0.78637944,118240.0,118230.0,1.2596197]
[1755198014419,0.72564,118240.0,118230.0,1.2596197]
[1755198015520,0.78637944,118240.0,118230.0,1.2596197]
[1755198015824,0.78637944,118240.0,118230.0,1.61662758]
[1755198016031,0.38462661,118240.0,118230.0,1.61662758]
[1755198016221,0.30855,118240.0,118230.0,1.61662758]
[1755198016524,0.38462661,118240.0,118230.0,1.61662758]
[1755198017617,0.73414661,118240.0,118230.0,1.61662758]
[1755198017815,0.80171661,118240.0,118230.0,1.2596197]
[1755198020322,0.80171661,118240.0,118230.0,0.4463397]
[1755198020528,0.80171661,118240.0,118230.0,1.2582997]
[1755198020728,0.72564,118240.0,118230.0,1.2582997]
[1755198021424,0.72564,118240.0,118230.0,0.4463397]
[1755198021624,0.72564,118240.0,118230.0,1.2579397]
[1755198022132,0.80165398,118240.0,118230.0,1.2579397]
[1755198024934,0.80165398,118240.0,118230.0,1.2565397]
[1755198026026,0.72564,118240.0,118230.0,1.2565397]
[1755198027527,0.72564,118240.0,118230.0,0.4463397]
[1755198027732,0.72564,118240.0,118230.0,1.2558197]
[1755198028127,0.72564,118240.0,118230.0,1.61282758]
[1755198028936,0.80165398,118240.0,118230.0,1.61282758]
[1755198029432,0.80165398,118240.0,118230.0,1.2558197]
[1755198029623,0.80165398,118240.0,118230.0,1.61282758]
[1755198030628,0.80165398,118240.0,118230.0,0.80334758]
[1755198030835,0.80165398,118240.0,118230.0,1.61310758]
[1755198031434,0.80165398,118240.0,118230.0,1.2560997]
[1755198032033,0.72564,118240.0,118230.0,1.2560997]
[1755198032332,0.80165398,118240.0,118230.0,1.2560997]
[1755198033034,0.80165398,118240.0,118230.0,1.61310758]
[1755198033432,0.80837398,118240.0,118230.0,1.61310758]
[1755198033828,0.73236,118240.0,118230.0,0.4463397]
[1755198034238,0.73236,118240.0,118230.0,1.2552597]
[1755198034532,1.16618186,118240.0,118230.0,1.1706]
[1755198034739,1.25075918,118240.0,118230.0,1.17052]
[1755198035043,0.97007918,118240.0,118220.0,0.4453468]
[1755198035225,0.82728788,118230.0,118220.0,1.2540274]
[1755198035633,0.47028,118230.0,118220.0,1.2540274]
[1755198036024,0.48634738,118230.0,118220.0,1.10090891]
[1755198036227,0.94965417,118230.0,118220.0,1.10190891]
[1755198036427,0.59264629,118230.0,118220.0,1.18645631]
[1755198036725,0.85134629,118230.0,118220.0,1.18645631]
[1755198036928,0.9274565,118230.0,118220.0,1.18645631]
[1755198037226,0.91138912,118230.0,118220.0,1.18645631]
[1755198037432,0.80509021,118230.0,118220.0,1.18645631]
[1755198037633,0.80509021,118230.0,118220.0,1.18745631]
[1755198038440,0.10629891,118240.0,118220.0,2.43973017]
[1755198038633,0.10629891,118250.0,118240.0,0.0853331]
[1755198038948,0.19804312,118270.0,118260.0,0.0855188]
[1755198039130,0.27015,118290.0,118280.0,0.0845046]
[1755198039438,0.47028,118290.0,118280.0,1.16311248]
[1755198039627,0.47028,118290.0,118280.0,1.50050589]
[1755198039834,0.49247884,118290.0,118280.0,1.85751377]
[1755198040033,0.49247884,118290.0,118280.0,1.04887377]
[1755198040343,0.49247884,118290.0,118280.0,1.85739377]
[1755198041243,0.49347884,118290.0,118280.0,1.85739377]
[1755198041443,0.49447884,118290.0,118280.0,1.85739377]
[1755198042235,0.49447884,118290.0,118280.0,1.85679377]
[1755198042738,0.49447884,118290.0,118280.0,0.69186589]
[1755198042947,0.49447884,118290.0,118280.0,1.49978589]
[1755198043337,0.49447884,118290.0,118280.0,0.69186609]
[1755198043542,0.49447884,118290.0,118280.0,1.49962609]
[1755198045345,0.49447884,118290.0,118280.0,1.13882609]
[1755198045939,0.26364884,118290.0,118280.0,1.49583397]
[1755198046143,0.07066884,118290.0,118280.0,1.49583397]
[1755198046742,0.49447884,118290.0,118280.0,1.49583397]
[1755198046949,0.60077679,118290.0,118280.0,1.49583397]
[1755198049940,0.60077679,118290.0,118280.0,1.49511397]
[1755198051151,0.60077679,118290.0,118280.0,1.36056624]
[1755198051342,0.23083,118280.0,118270.0,0.3618]
[1755198051547,1.18808788,118280.0,118270.0,0.8919922]
[1755198051749,0.83108,118280.0,118270.0,0.8909922]
[1755198052755,0.94054747,118280.0,118270.0,0.8909922]
[1755198053959,0.94054747,118280.0,118270.0,0.80648]
[1755198054157,1.29755535,118280.0,118270.0,0.80648]
[1755198054857,1.02505347,118280.0,118270.0,0.80648]
[1755198055060,0.94054747,118280.0,118270.0,0.8909931]
[1755198055367,1.00430077,118280.0,118270.0,0.8909931]
[1755198055558,1.26300077,118280.0,118270.0,0.8909931]
[1755198057465,1.34750677,118280.0,118270.0,0.80648]
[1755198057658,1.1567333,118280.0,118270.0,0.8909931]
[1755198057864,1.1567333,118280.0,118270.0,0.0845131]
[1755198058066,1.1567333,118280.0,118270.0,0.8888331]
[1755198058565,1.1567333,118280.0,118270.0,0.0845131]
[1755198058769,1.1567333,118280.0,118270.0,0.8885131]
[1755198058966,1.26604879,118280.0,118270.0,0.8885131]
[1755198059667,1.26604879,118280.0,118270.0,0.0845131]
[1755198059855,1.26604879,118280.0,118270.0,0.8885131]
[1755198060460,0.90524879,118280.0,118270.0,0.8885131]
[1755198060866,0.3721233,118280.0,118270.0,1.60712098]
[1755198061164,0.3256533,118280.0,118270.0,1.60732098]
[1755198061570,0.3722533,118280.0,118270.0,1.2503131]
[1755198061768,0.85708559,118280.0,118270.0,0.80332098]
[1755198062065,0.85708559,118280.0,118270.0,1.60896098]
[1755198062271,0.43297559,118280.0,118270.0,1.60896098]
[1755198062565,0.43297559,118280.0,118270.0,1.60976098]
[1755198062966,0.38637559,118280.0,118270.0,1.60976098]
[1755198063268,0.38637559,118280.0,118270.0,1.2527531]
[1755198063458,0.38637559,118280.0,118270.0,1.60976098]
[1755198063661,0.38637559,118280.0,118270.0,1.60896098]
[1755198063962,0.43297559,118280.0,118270.0,1.60896098]
[1755198064466,0.60171559,118280.0,118270.0,1.60896098]
[1755198064662,0.43297559,118280.0,118270.0,1.60896098]
[1755198064864,0.43297559,118280.0,118270.0,1.60976098]
[1755198065170,0.38637559,118280.0,118270.0,1.60976098]
[1755198065565,0.38637559,118280.0,118270.0,1.60896098]
[1755198065966,0.3256533,118280.0,118270.0,1.60896098]
[1755198066163,0.08755224,118280.0,118270.0,2.13586486]
[1755198066570,0.08755224,118280.0,118270.0,2.35550439]
[1755198067072,0.08755224,118280.0,118270.0,1.99849651]
[1755198068964,0.15363363,118280.0,118270.0,0.6154091]
[1755198069266,0.20023363,118280.0,118270.0,1.77689698]
[1755198069968,0.13415224,118280.0,118270.0,0.97241698]
[1755198070168,0.13415224,118280.0,118270.0,1.77661698]
[1755198070564,0.08755224,118280.0,118270.0,1.77661698]
[1755198070768,0.08755224,118280.0,118270.0,1.60752098]
[1755198071168,0.13415224,118280.0,118270.0,1.60752098]
[1755198071465,0.08755224,118280.0,118270.0,1.60752098]
[1755198073869,0.13415224,118280.0,118270.0,1.60752098]
[1755198074675,0.13415224,118280.0,118270.0,1.60636098]
[1755198075771,0.13415224,118280.0,118270.0,1.60592098]
[1755198076977,0.13415224,118280.0,118270.0,1.60580098]
[1755198077576,0.13415224,118280.0,118270.0,1.60560098]
[1755198077970,0.13415224,118280.0,118270.0,1.60540098]
[1755198078171,0.13415224,118280.0,118270.0,0.80332098]
[1755198078373,0.13415224,118280.0,118270.0,1.60520098]
[1755198078777,0.08755224,118280.0,118270.0,1.60520098]
[1755198079870,0.08755224,118280.0,118270.0,1.96220886]
[1755198080473,0.08755224,118280.0,118270.0,1.60520098]
[1755198080873,0.13415224,118280.0,118270.0,1.60520098]
[1755198081182,0.08755224,118280.0,118270.0,1.60520098]
[1755198082680,0.13415224,118280.0,118270.0,1.60520098]
[1755198084284,0.13415224,118280.0,118270.0,0.80332098]
[1755198084477,0.56121224,118280.0,118270.0,1.60448098]
[1755198084878,0.48972224,118280.0,118270.0,1.60448098]
[1755198085187,0.13415224,118280.0,118270.0,1.60448098]
[1755198085397,0.08755224,118280.0,118270.0,1.60448098]
[1755198085886,0.08755224,118280.0,118270.0,1.6233949]
[1755198086490,0.08755224,118280.0,118270.0,2.14949878]
[1755198086784,0.21735,118310.0,118300.0,0.0844934]
[1755198086978,0.21735,118310.0,118300.0,1.60342128]
[1755198087180,0.47739,118310.0,118300.0,1.60342128]
[1755198087980,0.49686726,118310.0,118300.0,1.60342128]
[1755198088489,0.55758955,118310.0,118300.0,1.60342128]
[1755198089788,0.53811229,118310.0,118300.0,1.60342128]
[1755198090180,0.53911229,118310.0,118300.0,0.80230128]
[1755198090381,0.53911229,118310.0,118300.0,1.60278128]
[1755198090580,0.54111229,118310.0,118300.0,1.60278128]
[1755198091289,0.48039,118310.0,118300.0,1.60278128]
[1755198092983,0.002,118310.0,118300.0,1.60278128]
[1755198093188,0.0491301,118310.0,118300.0,1.60278128]
[1755198093484,0.2376801,118310.0,118300.0,0.80230128]
[1755198093686,0.4773901,118310.0,118300.0,1.60174128]
[1755198094693,0.4773901,118310.0,118300.0,1.60154128]
[1755198094888,0.4773901,118310.0,118300.0,1.2444934]
[1755198095092,0.4773901,118310.0,118300.0,1.60150128]
[1755198095290,0.4773901,118310.0,118300.0,0.82129195]
[1755198095591,0.4773901,118310.0,118300.0,1.62049195]
[1755198095891,0.4773901,118310.0,118300.0,1.620328]
[1755198098793,0.4773901,118310.0,118300.0,1.60150128]
[1755198099788,0.4773901,118310.0,118300.0,1.60146128]
[1755198100880,0.5618772,118310.0,118300.0,0.4452934]
[1755198101088,0.5618772,118310.0,118300.0,0.8836134]
[1755198101089,0.58000105,118310.0,118300.0,0.8836134]
[1755198101292,0.58000105,118310.0,118300.0,0.0844934]
[1755198101796,0.62339949,118310.0,118300.0,0.8836134]
[1755198102289,0.7360901,118310.0,118300.0,0.8836134]
[1755198102694,0.7360901,118310.0,118300.0,1.24062128]
[1755198104290,0.79686407,118310.0,118300.0,0.80230128]
[1755198104595,0.79686407,118310.0,118300.0,1.60342128]
[1755198104997,0.47739,118300.0,118290.0,0.99114837]
[1755198105299,0.53816571,118300.0,118290.0,1.79226837]
[1755198105698,0.53816571,118300.0,118290.0,0.99114837]
[1755198105900,0.53816571,118300.0,118290.0,1.79242837]
[1755198106192,0.47739,118300.0,118290.0,1.79234837]
[1755198106800,0.53817008,118300.0,118290.0,1.416417]
[1755198106981,0.63859832,118300.0,118290.0,0.001]
[1755198107187,0.5618986,118280.0,118270.0,0.01916333]
[1755198107503,0.91496499,118280.0,118270.0,0.8854757]
[1755198107796,0.99947359,118280.0,118270.0,0.8854757]
[1755198107994,0.91497298,118280.0,118270.0,0.8854757]
[1755198108394,0.93239503,118280.0,118270.0,0.8854757]
[1755198108699,1.19109503,118280.0,118270.0,0.8854757]
[1755198108997,1.19029503,118280.0,118270.0,0.8854757]
[1755198109298,1.19029503,118280.0,118270.0,0.0845157]
[1755198109600,1.19029503,118280.0,118270.0,0.8862757]
[1755198110191,0.82949503,118280.0,118270.0,1.38917257]
[1755198110382,0.81207298,118280.0,118270.0,1.38917257]
[1755198110581,0.36852597,118280.0,118270.0,1.74997257]
[1755198110792,0.30783,118280.0,118270.0,1.74997257]
[1755198110992,0.49638,118280.0,118270.0,1.74997257]
[1755198111305,0.73609,118280.0,118270.0,1.74997257]
[1755198111687,0.79678597,118280.0,118270.0,1.74997257]
[1755198112194,0.73609,118280.0,118270.0,1.74997257]
[1755198113193,0.6646,118280.0,118270.0,1.74997257]
[1755198113399,0.49638,118280.0,118270.0,1.74997257]
[1755198113898,0.56238027,118280.0,118270.0,1.74997257]
[1755198114797,0.45140027,118280.0,118270.0,1.74997257]
[1755198114998,0.78873027,118280.0,118270.0,1.74997257]
[1755198115294,0.84942624,118280.0,118270.0,1.76917018]
[1755198115493,0.84942624,118280.0,118270.0,0.96841018]
[1755198115692,0.84942624,118280.0,118270.0,1.76929018]
[1755198116201,0.78873027,118280.0,118270.0,1.76933018]
[1755198116899,0.37383027,118280.0,118270.0,1.76933018]
[1755198117100,0.32470027,118280.0,118270.0,1.76933018]
[1755198117398,0.32470027,118280.0,118270.0,1.77013018]
[1755198117789,0.32470027,118280.0,118270.0,1.76933018]
[1755198117984,0.37029027,118280.0,118270.0,1.76933018]
[1755198118698,0.52880027,118280.0,118270.0,1.76933018]
[1755198118889,0.52880027,118280.0,118270.0,1.76905956]
[1755198119093,0.37029027,118280.0,118270.0,1.76905956]
[1755198119588,0.37029027,118280.0,118270.0,1.76829956]
[1755198122691,0.79054027,118280.0,118270.0,1.76753956]
[1755198123505,0.87504867,118280.0,118270.0,0.46524269]
[1755198123687,0.79054027,118280.0,118270.0,1.26464269]
[1755198124195,0.87504867,118280.0,118270.0,1.26464269]
[1755198126894,0.87504867,118280.0,118270.0,0.10444269]
[1755198127093,1.25289392,118280.0,118270.0,0.90484269]
[1755198128603,1.25369392,118280.0,118270.0,0.90384269]
[1755198129603,1.25369392,118280.0,118270.0,0.81932699]
[1755198130099,1.31358989,118280.0,118270.0,0.001]
[1755198130299,1.31438989,118280.0,118270.0,0.8004]
[1755198131503,1.31438989,118280.0,118270.0,0.8014]
[1755198131802,1.31438989,118280.0,118270.0,0.002]
[1755198132003,1.31438989,118280.0,118270.0,0.8004]
[1755198132801,1.31438989,118280.0,118270.0,0.001]
[1755198133108,1.31438989,118280.0,118250.0,0.0845258]
[1755198133109,0.5503626,118260.0,118250.0,0.0845258]
[1755198133312,0.9782342,118260.0,118240.0,1.44157715]
[1755198133500,0.9111698,118250.0,118240.0,1.44157715]
[1755198133821,0.82664,118250.0,118240.0,2.24097715]
[1755198134099,0.82664,118250.0,118240.0,2.24197715]
[1755198134699,1.08534,118250.0,118240.0,2.24197715]
[1755198134901,1.08634,118250.0,118240.0,2.24197715]
[1755198135300,0.72554,118250.0,118240.0,2.24197715]
[1755198135803,0.56906,118250.0,118240.0,3.10567402]
[1755198136001,0.30529,118250.0,118240.0,3.10747402]
[1755198136306,0.2597,118250.0,118240.0,3.10747402]
[1755198138711,0.30529,118250.0,118240.0,3.10747402]
[1755198138902,0.30529,118250.0,118240.0,2.30727402]
[1755198139103,0.30529,118250.0,118240.0,3.10675402]
[1755198139707,0.36606645,118250.0,118240.0,3.10675402]
[1755198140110,0.32047645,118250.0,118240.0,3.10675402]
[1755198140315,0.30529,118250.0,118240.0,3.10675402]
[1755198142318,0.56703,118250.0,118240.0,2.30627402]
[1755198142507,0.72554,118250.0,118240.0,3.10575402]
[1755198142712,0.38821,118250.0,118240.0,3.10675402]
[1755198143613,0.30529,118250.0,118240.0,3.10675402]
[1755198143819,0.2597,118250.0,118240.0,3.10755402]
[1755198144008,0.2597,118250.0,118240.0,3.10675402]
[1755198145417,0.2587,118250.0,118240.0,3.10875402]
[1755198145920,0.2587,118250.0,118240.0,3.10975402]
[1755198147313,0.30583,118250.0,118240.0,3.10836399]
[1755198148419,0.30583,118250.0,118240.0,3.10536399]
[1755198148918,0.30583,118250.0,118240.0,2.30588399]
[1755198149114,0.30583,118250.0,118240.0,3.10528399]
[1755198150310,0.5849792,118250.0,118240.0,2.30488399]
[1755198150515,0.8140292,118250.0,118240.0,2.60138712]
[1755198150820,0.7295,118250.0,118240.0,2.60104202]
[1755198151014,0.7295,118250.0,118240.0,3.10393889]
[1755198151615,0.7305,118250.0,118240.0,3.10393889]
[1755198152124,0.8150292,118250.0,118240.0,3.10393889]
[1755198152324,0.8150292,118250.0,118240.0,2.30453889]
[1755198152525,0.8150292,118250.0,118240.0,3.10393889]
[1755198152726,0.8150292,118250.0,118240.0,2.30453889]
[1755198152927,0.7305,118250.0,118240.0,3.10389889]
[1755198153126,0.7305,118250.0,118240.0,2.30453889]
[1755198153425,0.79127645,118250.0,118240.0,2.60093251]
[1755198153628,0.79127645,118250.0,118240.0,2.30450938]
[1755198153824,0.79127645,118250.0,118240.0,3.10382938]
[1755198155228,0.79127645,118250.0,118240.0,3.10482938]
[1755198155527,0.56222645,118250.0,118240.0,3.10482938]
[1755198155721,0.79127645,118250.0,118240.0,3.10482938]
[1755198155920,0.79127645,118250.0,118240.0,2.30550938]
[1755198156122,0.80648298,118250.0,118240.0,3.10482938]
[1755198156930,0.80648298,118250.0,118240.0,3.10489541]
[1755198157130,0.73821298,118250.0,118240.0,3.10489541]
[1755198157525,0.89101218,118250.0,118240.0,1.80167854]
[1755198157730,0.89181218,118250.0,118240.0,2.23915854]
[1755198158124,1.25261218,118250.0,118240.0,2.24015854]
[1755198159333,1.25181218,118250.0,118240.0,2.23915854]
[1755198159526,1.25181218,118250.0,118240.0,1.35534254]
[1755198159731,1.1758292,118250.0,118240.0,2.15458254]
[1755198160124,1.1758292,118250.0,118240.0,2.15558254]
[1755198162429,1.25181218,118250.0,118240.0,2.15558254]
[1755198162737,1.2518708,118250.0,118240.0,2.07104654]
[1755198163034,1.71283635,118250.0,118240.0,0.79924]
[1755198163238,1.80586335,118250.0,118240.0,0.79924]
[1755198163636,1.80586335,118250.0,118240.0,0.883776]
[1755198163837,1.44810242,118250.0,118240.0,0.883776]
[1755198166240,1.44798625,118250.0,118240.0,0.883776]
[1755198167343,1.44798625,118250.0,118240.0,0.79924]
[1755198167527,1.44798625,118250.0,118240.0,0.80024]
[1755198167528,1.80574718,118250.0,118240.0,0.80024]
[1755198167838,1.80574718,118250.0,118240.0,0.884776]
[1755198168025,1.72121218,118250.0,118240.0,0.884776]
[1755198168228,1.43949289,118250.0,118240.0,0.884736]
[1755198168642,1.36345125,118250.0,118240.0,0.884736]
[1755198169025,1.43949289,118250.0,118240.0,0.085536]
[1755198169233,1.43949289,118250.0,118240.0,0.884696]
[1755198169735,1.42097461,118250.0,118240.0,0.884696]
[1755198169940,1.43968766,118250.0,118240.0,0.884736]
[1755198170443,1.72140695,118250.0,118240.0,0.884736]
[1755198170639,0.084536,118240.0,118230.0,0.1690847]
[1755198170833,0.70080426,118240.0,118230.0,0.2546284]
[1755198171137,0.97698426,118240.0,118230.0,1.0537884]
[1755198171839,0.97698426,118240.0,118230.0,0.2546284]
[1755198172044,0.99561424,118240.0,118230.0,1.0537884]
[1755198172738,0.89244826,118240.0,118230.0,1.0537884]
[1755198172934,0.91107824,118240.0,118230.0,1.0537884]
[1755198173241,0.99561344,118240.0,118230.0,1.0537884]
[1755198175438,0.99561344,118240.0,118230.0,1.0527884]
[1755198175642,0.93495054,118240.0,118230.0,1.0527884]
[1755198175844,0.93495054,118240.0,118230.0,0.2546284]
[1755198176140,1.35355558,118240.0,118230.0,0.084541]
[1755198176344,1.35355558,118240.0,118230.0,0.883661]
[1755198176345,1.27389613,118240.0,118230.0,0.883661]
[1755198176536,1.35355596,118240.0,118230.0,0.883661]
[1755198176846,1.35355596,118240.0,118230.0,0.79912]
[1755198177045,0.15325,118230.0,118220.0,0.2552482]
[1755198177245,0.97843993,118230.0,118220.0,1.0543682]
[1755198177749,0.5361365,118230.0,118220.0,1.0553682]
[1755198177950,0.5361365,118230.0,118220.0,1.4161682]
[1755198178244,0.1088365,118230.0,118220.0,1.77592913]
[1755198178436,0.5361365,118230.0,118220.0,1.77592913]
[1755198178639,0.5361365,118230.0,118220.0,1.77492913]
[1755198178838,0.5361365,118230.0,118220.0,1.4191682]
[1755198179240,0.55128625,118230.0,118220.0,1.4191682]
[1755198179947,0.63582855,118230.0,118220.0,1.4191682]
[1755198180247,0.55128625,118230.0,118220.0,1.4191682]
[1755198180640,0.13995922,118230.0,118220.0,1.77792913]
[1755198181545,0.31071922,118230.0,118220.0,1.4201682]
[1755198181751,0.31071922,118230.0,118220.0,1.77792913]
[1755198182045,0.46108922,118230.0,118220.0,1.77792913]
[1755198183446,0.20474947,118230.0,118220.0,1.77692913]
[1755198183650,0.12480947,118230.0,118220.0,1.77792913]
[1755198184651,0.55210947,118230.0,118220.0,1.77792913]
[1755198184846,0.65223992,118230.0,118220.0,1.4191682]
[1755198185052,0.56769762,118230.0,118220.0,1.77692913]
[1755198185945,0.56769762,118230.0,118220.0,1.77792913]
[1755198186549,0.65223992,118230.0,118220.0,1.77692913]
[1755198187251,0.56769762,118230.0,118220.0,1.4191682]
[1755198187749,0.56769762,118230.0,118220.0,1.77692913]
[1755198187950,0.55210947,118230.0,118220.0,1.77792913]
[1755198189052,0.55210947,118230.0,118220.0,0.97880913]
[1755198189546,0.55210947,118230.0,118220.0,1.77776913]
[1755198191354,0.55210947,118230.0,118220.0,1.4200082]
[1755198191652,0.63665177,118230.0,118220.0,1.77776913]
[1755198191848,0.55210947,118230.0,118220.0,1.77776913]
[1755198194156,0.31091947,118230.0,118220.0,1.77776913]
[1755198194657,0.48167947,118230.0,118220.0,1.77776913]
[1755198194857,0.55210947,118230.0,118220.0,1.77776913]
[1755198195961,0.49126297,118230.0,118220.0,1.77776913]
[1755198196161,0.56730461,118230.0,118220.0,1.77776913]
[1755198198360,0.65184681,118230.0,118220.0,1.77776913]
[1755198198664,0.65184681,118230.0,118220.0,1.77676913]
[1755198199260,0.56730461,118230.0,118220.0,1.4190082]
[1755198199864,0.56730461,118230.0,118220.0,1.4188082]
[1755198200466,0.56730461,118230.0,118220.0,1.4198082]
[1755198200659,0.56730461,118230.0,118220.0,1.77756913]
[1755198202557,0.56730461,118230.0,118220.0,1.77656913]
[1755198203457,0.56730461,118230.0,118220.0,1.77756913]
[1755198204260,0.56730461,118230.0,118220.0,1.77656913]
[1755198205066,0.56730461,118230.0,118220.0,1.77756913]
[1755198206064,0.55219396,118230.0,118220.0,1.77756913]
[1755198206967,0.63673626,118230.0,118220.0,1.77656913]
[1755198207157,0.55219396,118230.0,118220.0,1.77656913]
[1755198207768,0.55219396,118230.0,118220.0,1.77756913]
[1755198208171,0.55219396,118230.0,118220.0,1.77732913]
[1755198209561,0.55219396,118230.0,118220.0,1.77632913]
[1755198209761,0.63673626,118230.0,118220.0,1.77632913]
[1755198210165,0.63673626,118230.0,118220.0,0.97780913]
[1755198210359,0.63673626,118230.0,118220.0,1.4169282]
[1755198210864,0.55219396,118230.0,118220.0,1.77468913]
[1755198211264,0.55219396,118230.0,118220.0,1.77568913]
[1755198215469,0.55219396,118230.0,118220.0,0.97720913]
[1755198215674,0.55219396,118230.0,118220.0,1.77712913]
[1755198216170,0.12594396,118230.0,118220.0,1.77612913]
[1755198216379,0.07690396,118230.0,118220.0,1.77712913]
[1755198216578,0.06093099,118230.0,118220.0,1.77712913]
[1755198216772,0.07690396,118230.0,118220.0,1.77712913]
[1755198216971,0.06093099,118230.0,118220.0,1.77712913]
[1755198217172,0.07690396,118230.0,118220.0,1.77712913]
[1755198217374,0.10997099,118230.0,118220.0,1.77712913]
[1755198217573,0.12594396,118230.0,118220.0,1.77712913]
[1755198219573,0.12594396,118230.0,118220.0,1.77612913]
[1755198219774,0.55728396,118230.0,118220.0,1.77612913]
[1755198219976,0.55728396,118230.0,118220.0,1.77712913]
[1755198221773,0.55728396,118230.0,118220.0,1.79424986]
[1755198222980,0.12594396,118230.0,118220.0,1.79424986]
[1755198223282,0.55728396,118230.0,118220.0,1.79424986]
[1755198223983,0.55728396,118230.0,118220.0,1.43648893]
[1755198224174,0.55728396,118230.0,118220.0,1.79417233]
[1755198225577,0.55728396,118230.0,118220.0,0.99485233]
[1755198225776,0.55728396,118230.0,118220.0,1.79285233]
[1755198225977,0.49635297,118230.0,118220.0,0.99485233]
[1755198226180,0.49635297,118230.0,118220.0,1.79285233]
[1755198226378,0.49635297,118230.0,118220.0,0.99585233]
[1755198226578,0.49635297,118230.0,118220.0,1.79385233]
[1755198226785,0.65693681,118230.0,118220.0,1.79385233]
[1755198227081,0.58089517,118230.0,118220.0,1.79281233]
[1755198227278,0.49635297,118230.0,118220.0,1.79281233]
[1755198227475,0.49635297,118230.0,118220.0,0.99485233]
[1755198227672,0.49635297,118230.0,118220.0,1.79281233]
[1755198228183,0.55727553,118230.0,118220.0,1.4350514]
[1755198228380,0.55727553,118230.0,118220.0,1.79281233]
[1755198228583,0.55727553,118230.0,118220.0,1.79277233]
[1755198228784,0.64181773,118230.0,118220.0,1.4350114]
[1755198228985,0.99957866,118230.0,118220.0,1.4350114]
[1755198229482,0.64181967,118230.0,118220.0,1.4349714]
[1755198231289,0.64181967,118230.0,118220.0,0.6370914]
[1755198231689,0.64181967,118230.0,118220.0,1.4349314]
[1755198232182,0.9995806,118230.0,118220.0,0.1045926]
[1755198232384,0.9386561,118230.0,118220.0,0.9023926]
[1755198232585,0.9995806,118230.0,118220.0,0.9023926]
[1755198233687,1.3603806,118230.0,118220.0,0.8178432]
[1755198233981,1.4694241,118230.0,118220.0,0.0200432]
[1755198234182,1.4694241,118230.0,118220.0,0.8178032]
[1755198234388,1.7281241,118230.0,118220.0,0.8178032]
[1755198234587,1.80416574,118230.0,118220.0,0.8178032]
[1755198235383,1.80416574,118230.0,118220.0,0.0200432]
[1755198235574,1.5589561,118230.0,118220.0,0.00172927]
[1755198235777,1.62658698,118230.0,118220.0,0.79944927]
[1755198235977,1.7027154,118230.0,118220.0,0.79944927]
[1755198236988,1.62658698,118230.0,118220.0,0.00172927]
[1755198237185,1.62658698,118230.0,118220.0,0.79944927]
[1755198237386,1.70266365,118230.0,118220.0,0.00172927]
[1755198237580,1.70266365,118230.0,118220.0,0.79940927]
[1755198238083,1.70266365,118230.0,118220.0,0.79944927]
[1755198238987,2.15086365,118230.0,118220.0,0.79944927]
[1755198240381,2.15086365,118230.0,118220.0,0.88399857]
[1755198240685,1.34696052,118230.0,118220.0,0.88559857]
[1755198240889,1.43150272,118230.0,118220.0,0.88559857]
[1755198241085,1.27088385,118230.0,118220.0,1.2433595]
[1755198241282,1.27088385,118230.0,118220.0,1.6041595]
[1755198241591,0.851328,118230.0,118220.0,1.6059595]
[1755198241792,0.79050385,118230.0,118220.0,1.6059595]
[1755198241980,0.83629385,118230.0,118220.0,1.6059595]
[1755198242287,1.07942385,118230.0,118220.0,1.6059595]
[1755198242581,1.23790495,118230.0,118220.0,1.24627857]
[1755198242782,1.6595291,118230.0,118220.0,0.08787857]
[1755198242986,1.6595291,118230.0,118220.0,0.88547857]
[1755198244489,1.2987291,118230.0,118220.0,0.88547857]
[1755198245086,1.2987297,118230.0,118220.0,0.88547857]
[1755198245984,1.23790555,118230.0,118220.0,0.8169077]
[1755198246188,1.19403385,118230.0,118220.0,1.60231023]
[1755198246395,1.34400018,118230.0,118220.0,1.60331023]
[1755198246788,0.91232018,118230.0,118220.0,1.60231023]
[1755198246983,0.91232018,118230.0,118220.0,1.60331023]
[1755198247386,1.15545018,118230.0,118220.0,1.60331023]
[1755198247586,1.22939018,118230.0,118220.0,1.60331023]
[1755198248394,0.91232018,118230.0,118220.0,1.60331023]
[1755198248894,0.8446893,118230.0,118220.0,1.60331023]
[1755198251088,1.0108793,118230.0,118220.0,1.60331023]